[Event "Titled Tuesday Blitz August 15 Early 2023"]
[White "RrainlessBobot"]
[Black "Bryakin, Mikhail"]
[BlackFideId "4165314"]
[WhiteElo "2507"]
[BlackElo "2719"]
[Result "0-1"]
[Round "10"]
[TimeControl "180+1"]
[Date "2023.08.15"]
[WhiteClock "0:00:03"]
[BlackClock "0:00:23"]
[Board "39"]

1. Nf3 {[%clk 0:02:56]}  Nf6 {[%clk 0:02:57]} 2. g3 {[%clk 0:02:57]}  b5 {[%clk 0:02:57]} 3. Bg2 {[%clk 0:02:57]}  Bb7 {[%clk 0:02:58]} 4. O-O {[%clk 0:02:57]}  e6 {[%clk 0:02:56]} 5. d3 {[%clk 0:02:58]}  c5 {[%clk 0:02:56]} 6. e4 {[%clk 0:02:57]}  Be7 {[%clk 0:02:54]} 7. Re1 {[%clk 0:02:55]}  O-O {[%clk 0:02:53]} 8. a4 {[%clk 0:02:55]}  b4 {[%clk 0:02:54]} 9. Nbd2 {[%clk 0:02:55]}  d5 {[%clk 0:02:53]} 10. exd5 {[%clk 0:02:47]}  exd5 {[%clk 0:02:54]} 11. a5 {[%clk 0:02:43]}  a6 {[%clk 0:02:51]} 12. Nb3 {[%clk 0:02:35]}  Nbd7 {[%clk 0:02:51]} 13. Bf4 {[%clk 0:02:17]}  Re8 {[%clk 0:02:47]} 14. Ne5 {[%clk 0:02:10]}  Bf8 {[%clk 0:02:39]} 15. Qf3 {[%clk 0:01:56]}  Rc8 {[%clk 0:02:26]} 16. Bh3 {[%clk 0:01:50]}  Nxe5 {[%clk 0:02:26]} 17. Bxe5 {[%clk 0:01:49]}  Rc6 {[%clk 0:02:26]} 18. Re2 {[%clk 0:01:35]}  Nd7 {[%clk 0:02:18]} 19. Bf4 {[%clk 0:01:35]}  Rxe2 {[%clk 0:02:15]} 20. Qxe2 {[%clk 0:01:35]}  h6 {[%clk 0:02:12]} 21. Re1 {[%clk 0:01:29]}  Nf6 {[%clk 0:02:13]} 22. Be5 {[%clk 0:01:22]}  Nh7 {[%clk 0:01:54]} 23. Bf4 {[%clk 0:01:14]}  Ng5 {[%clk 0:01:52]} 24. Bxg5 {[%clk 0:00:56]}  hxg5 {[%clk 0:01:46]} 25. Qe8 {[%clk 0:00:56]}  Qxe8 {[%clk 0:01:43]} 26. Rxe8 {[%clk 0:00:56]}  Rc7 {[%clk 0:01:44]} 27. Rb8 {[%clk 0:00:52]}  g6 {[%clk 0:01:42]} 28. Bg2 {[%clk 0:00:47]}  Kg7 {[%clk 0:01:43]} 29. Rxb7 {[%clk 0:00:34]}  Rxb7 {[%clk 0:01:42]} 30. Bxd5 {[%clk 0:00:35]}  Rd7 {[%clk 0:01:41]} 31. Bc4 {[%clk 0:00:35]}  Rd8 {[%clk 0:01:41]} 32. Bxa6 {[%clk 0:00:35]}  Bd6 {[%clk 0:01:26]} 33. Bb7 {[%clk 0:00:35]}  Bc7 {[%clk 0:01:21]} 34. a6 {[%clk 0:00:34]}  Bb6 {[%clk 0:01:22]} 35. Nd2 {[%clk 0:00:24]}  Re8 {[%clk 0:01:22]} 36. Kf1 {[%clk 0:00:24]}  Kf6 {[%clk 0:01:15]} 37. Nc4 {[%clk 0:00:24]}  Ba7 {[%clk 0:01:16]} 38. Nd6 {[%clk 0:00:24]}  Rd8 {[%clk 0:00:59]} 39. Nb5 {[%clk 0:00:19]}  Bb6 {[%clk 0:00:59]} 40. Be4 {[%clk 0:00:15]}  Rd7 {[%clk 0:00:56]} 41. Bc6 {[%clk 0:00:15]}  Re7 {[%clk 0:00:55]} 42. h3 {[%clk 0:00:14]}  Ke5 {[%clk 0:00:55]} 43. Ke2 {[%clk 0:00:13]}  f5 {[%clk 0:00:54]} 44. Kd2 {[%clk 0:00:08]}  Rh7 {[%clk 0:00:54]} 45. Bg2 {[%clk 0:00:07]}  Rd7 {[%clk 0:00:49]} 46. c3 {[%clk 0:00:07]}  b3 {[%clk 0:00:47]} 47. c4 {[%clk 0:00:06]}  Ba5+ {[%clk 0:00:47]} 48. Ke2 {[%clk 0:00:05]}  Bb6 {[%clk 0:00:47]} 49. Bd5 {[%clk 0:00:06]}  Re7 {[%clk 0:00:46]} 50. Ke3 {[%clk 0:00:06]}  f4+ {[%clk 0:00:45]} 51. gxf4+ {[%clk 0:00:05]}  gxf4+ {[%clk 0:00:46]} 52. Kf3 {[%clk 0:00:06]}  g5 {[%clk 0:00:47]} 53. Be4 {[%clk 0:00:06]}  Rd7 {[%clk 0:00:46]} 54. Nc3 {[%clk 0:00:06]}  Ba5 {[%clk 0:00:43]} 55. Nd5 {[%clk 0:00:06]}  Ra7 {[%clk 0:00:43]} 56. Ke2 {[%clk 0:00:02]}  Rxa6 {[%clk 0:00:43]} 57. Ne7 {[%clk 0:00:03]}  Kd6 {[%clk 0:00:34]} 58. Nf5+ {[%clk 0:00:03]}  Ke6 {[%clk 0:00:33]} 59. Ng7+ {[%clk 0:00:02]}  Kf7 {[%clk 0:00:32]} 60. Nf5 {[%clk 0:00:03]}  Bc3 {[%clk 0:00:28]} 61. bxc3 {[%clk 0:00:03]}  b2 {[%clk 0:00:29]} 62. d4 {[%clk 0:00:04]}  Re6 {[%clk 0:00:29]} 63. Kd2 {[%clk 0:00:02]}  Rxe4 {[%clk 0:00:29]} 64. Kc2 {[%clk 0:00:02]}  Re2+ {[%clk 0:00:28]} 65. Kb1 {[%clk 0:00:03]}  Rxf2 {[%clk 0:00:28]} 66. dxc5 {[%clk 0:00:03]}  Ke6 {[%clk 0:00:24]} 67. c6 {[%clk 0:00:04]}  f3 {[%clk 0:00:25]} 68. c5 {[%clk 0:00:04]}  Rd2 {[%clk 0:00:23]} 69. Nd4+ {[%clk 0:00:01]}  Rxd4 {[%clk 0:00:23]} 70. cxd4 {[%clk 0:00:02]}  f2 {[%clk 0:00:23]} 71. Kxb2 {[%clk 0:00:02]}  f1=Q {[%clk 0:00:23]} 72. Kc3 {[%clk 0:00:03]} 0-1


[Site "https://www.chess.com"]

[Event "Titled Tuesday Blitz August 15 Early 2023"]
[White "Galchenko, Matvey"]
[Black "Komov, Roman"]
[WhiteFideId "24175480"]
[BlackFideId "24175714"]
[WhiteElo "2884"]
[BlackElo "2621"]
[Result "0-1"]
[Round "10"]
[TimeControl "180+1"]
[Date "2023.08.15"]
[WhiteClock "0:00:03"]
[BlackClock "0:00:10"]
[Board "42"]

1. f4 {[%clk 0:03:00]}  d5 {[%clk 0:02:56]} 2. Nf3 {[%clk 0:03:00]}  g6 {[%clk 0:02:56]} 3. g3 {[%clk 0:03:01]}  Bg7 {[%clk 0:02:57]} 4. Bg2 {[%clk 0:03:01]}  Nf6 {[%clk 0:02:57]} 5. O-O {[%clk 0:03:01]}  O-O {[%clk 0:02:57]} 6. d3 {[%clk 0:03:02]}  c5 {[%clk 0:02:49]} 7. Nc3 {[%clk 0:03:02]}  Nc6 {[%clk 0:02:40]} 8. e4 {[%clk 0:03:01]}  d4 {[%clk 0:02:40]} 9. Na4 {[%clk 0:02:51]}  Nd7 {[%clk 0:02:40]} 10. c4 {[%clk 0:02:50]}  Qc7 {[%clk 0:02:36]} 11. a3 {[%clk 0:02:46]}  b6 {[%clk 0:02:36]} 12. Rb1 {[%clk 0:02:45]}  Bb7 {[%clk 0:02:32]} 13. b4 {[%clk 0:02:45]}  Nd8 {[%clk 0:02:20]} 14. e5 {[%clk 0:02:36]}  Ne6 {[%clk 0:02:05]} 15. Qe2 {[%clk 0:02:34]}  Rad8 {[%clk 0:02:00]} 16. Nb2 {[%clk 0:02:31]}  cxb4 {[%clk 0:01:44]} 17. axb4 {[%clk 0:02:30]}  a5 {[%clk 0:01:45]} 18. Nd1 {[%clk 0:02:28]}  axb4 {[%clk 0:01:43]} 19. Rxb4 {[%clk 0:02:28]}  Ndc5 {[%clk 0:01:42]} 20. Nf2 {[%clk 0:02:27]}  Ra8 {[%clk 0:01:38]} 21. Bb2 {[%clk 0:02:19]}  Ra2 {[%clk 0:01:35]} 22. Rb1 {[%clk 0:02:13]}  Rfa8 {[%clk 0:01:33]} 23. Qe1 {[%clk 0:02:12]}  Na4 {[%clk 0:01:16]} 24. Ba1 {[%clk 0:01:42]}  Qd7 {[%clk 0:01:00]} 25. h3 {[%clk 0:01:20]}  Nec5 {[%clk 0:00:55]} 26. Rd1 {[%clk 0:00:58]}  e6 {[%clk 0:00:28]} 27. Kh2 {[%clk 0:00:30]}  Bf8 {[%clk 0:00:28]} 28. Rbb1 {[%clk 0:00:26]}  Nc3 {[%clk 0:00:27]} 29. Bxc3 {[%clk 0:00:27]}  dxc3 {[%clk 0:00:28]} 30. Rbc1 {[%clk 0:00:28]}  c2 {[%clk 0:00:21]} 31. Rd2 {[%clk 0:00:25]}  Nb3 {[%clk 0:00:22]} 32. Rdxc2 {[%clk 0:00:20]}  Nxc1 {[%clk 0:00:22]} 33. Rxc1 {[%clk 0:00:21]}  Bc5 {[%clk 0:00:19]} 34. Ng4 {[%clk 0:00:16]}  Qxd3 {[%clk 0:00:15]} 35. Rc3 {[%clk 0:00:16]}  Qd8 {[%clk 0:00:11]} 36. Qf1 {[%clk 0:00:10]}  Kh8 {[%clk 0:00:10]} 37. Rc1 {[%clk 0:00:04]}  Kg7 {[%clk 0:00:10]} 38. Rd1 {[%clk 0:00:04]}  Qe7 {[%clk 0:00:11]} 39. Nf6 {[%clk 0:00:05]}  Rd8 {[%clk 0:00:10]} 40. Rb1 {[%clk 0:00:05]}  Bxf3 {[%clk 0:00:09]} 41. Qxf3 {[%clk 0:00:03]}  Rdd2 {[%clk 0:00:09]} 42. Rg1 {[%clk 0:00:03]}  Bxg1+ {[%clk 0:00:09]} 43. Kxg1 {[%clk 0:00:04]}  Rxg2+ {[%clk 0:00:10]} 44. Kh1 {[%clk 0:00:04]}  Rh2+ {[%clk 0:00:10]} 45. Kg1 {[%clk 0:00:03]}  Qc5+ {[%clk 0:00:10]} 0-1


[Site "https://www.chess.com"]

[Event "Titled Tuesday Blitz August 15 Early 2023"]
[White "Cherniaiev, Tykhon"]
[Black "Di Nicolantonio, Lucas"]
[WhiteFideId "14182360"]
[BlackFideId "680460"]
[WhiteElo "2797"]
[BlackElo "2614"]
[Result "0-1"]
[Round "10"]
[TimeControl "180+1"]
[Date "2023.08.15"]
[WhiteClock "0:00:05"]
[BlackClock "0:00:16"]
[Board "44"]

1. Nf3 {[%clk 0:03:00]}  g6 {[%clk 0:02:59]} 2. d4 {[%clk 0:03:01]}  Bg7 {[%clk 0:02:57]} 3. c4 {[%clk 0:03:01]}  d6 {[%clk 0:02:53]} 4. g3 {[%clk 0:02:55]}  f5 {[%clk 0:02:53]} 5. Bg2 {[%clk 0:02:55]}  Nf6 {[%clk 0:02:53]} 6. O-O {[%clk 0:02:55]}  O-O {[%clk 0:02:54]} 7. Nc3 {[%clk 0:02:56]}  Nc6 {[%clk 0:02:55]} 8. Re1 {[%clk 0:02:56]}  e5 {[%clk 0:02:55]} 9. e3 {[%clk 0:02:38]}  e4 {[%clk 0:02:53]} 10. Nd2 {[%clk 0:02:37]}  Nb4 {[%clk 0:02:52]} 11. Rf1 {[%clk 0:02:33]}  d5 {[%clk 0:02:48]} 12. cxd5 {[%clk 0:02:30]}  Nbxd5 {[%clk 0:02:45]} 13. Qb3 {[%clk 0:02:26]}  c6 {[%clk 0:02:39]} 14. Nc4 {[%clk 0:02:26]}  Kh8 {[%clk 0:02:38]} 15. Ne5 {[%clk 0:02:24]}  Qe7 {[%clk 0:02:34]} 16. f3 {[%clk 0:02:09]}  Be6 {[%clk 0:02:33]} 17. Qc2 {[%clk 0:01:55]}  exf3 {[%clk 0:02:22]} 18. Bxf3 {[%clk 0:01:54]}  Nxc3 {[%clk 0:02:17]} 19. bxc3 {[%clk 0:01:52]}  Bd5 {[%clk 0:02:18]} 20. a4 {[%clk 0:01:50]}  Qe6 {[%clk 0:02:09]} 21. Ba3 {[%clk 0:01:49]}  Rfe8 {[%clk 0:02:10]} 22. Rab1 {[%clk 0:01:49]}  Rab8 {[%clk 0:01:56]} 23. Rbe1 {[%clk 0:01:23]}  Bxf3 {[%clk 0:01:48]} 24. Nxf3 {[%clk 0:01:20]}  b5 {[%clk 0:01:38]} 25. axb5 {[%clk 0:01:19]}  cxb5 {[%clk 0:01:37]} 26. Bc5 {[%clk 0:01:08]}  a5 {[%clk 0:01:34]} 27. Qb2 {[%clk 0:00:34]}  Ne4 {[%clk 0:01:33]} 28. Qa3 {[%clk 0:00:31]}  Qc4 {[%clk 0:01:26]} 29. Qxa5 {[%clk 0:00:07]}  Nxc5 {[%clk 0:01:13]} 30. dxc5 {[%clk 0:00:08]}  Bxc3 {[%clk 0:01:13]} 31. Qc7 {[%clk 0:00:06]}  Rbc8 {[%clk 0:01:08]} 32. Qb7 {[%clk 0:00:06]}  Bxe1 {[%clk 0:01:04]} 33. Ng5 {[%clk 0:00:07]}  Qg8 {[%clk 0:00:34]} 34. Nf7+ {[%clk 0:00:07]}  Kg7 {[%clk 0:00:28]} 35. Nd6+ {[%clk 0:00:07]}  Kh8 {[%clk 0:00:28]} 36. Rxe1 {[%clk 0:00:03]}  Rxc5 {[%clk 0:00:19]} 37. Nf7+ {[%clk 0:00:03]}  Kg7 {[%clk 0:00:19]} 38. Nd6+ {[%clk 0:00:04]}  Kh8 {[%clk 0:00:20]} 39. Nxe8 {[%clk 0:00:04]}  Qxe8 {[%clk 0:00:20]} 40. Ra1 {[%clk 0:00:04]}  Qxe3+ {[%clk 0:00:18]} 41. Kf1 {[%clk 0:00:05]}  Qd3+ {[%clk 0:00:16]} 42. Kg1 {[%clk 0:00:05]}  Qd4+ {[%clk 0:00:16]} 43. Kg2 {[%clk 0:00:05]}  Rc2+ {[%clk 0:00:16]} 44. Kh3 {[%clk 0:00:05]}  Qg4# {[%clk 0:00:16]} 0-1


[Site "https://www.chess.com"]

[Event "Titled Tuesday Blitz August 15 Early 2023"]
[White "Bodnaruk, Anastasia"]
[Black "Schmakel, Sam"]
[WhiteFideId "4181751"]
[BlackFideId "2039311"]
[WhiteElo "2612"]
[BlackElo "2754"]
[Result "1-0"]
[Round "10"]
[TimeControl "180+1"]
[Date "2023.08.15"]
[WhiteClock "0:01:01"]
[BlackClock "0:00:00"]
[Board "45"]

1. e4 {[%clk 0:03:00]}  c6 {[%clk 0:02:55]} 2. d4 {[%clk 0:03:00]}  d5 {[%clk 0:02:55]} 3. e5 {[%clk 0:03:00]}  Bf5 {[%clk 0:02:51]} 4. Nf3 {[%clk 0:03:00]}  e6 {[%clk 0:02:47]} 5. Be2 {[%clk 0:03:00]}  Nd7 {[%clk 0:02:37]} 6. O-O {[%clk 0:03:00]}  a5 {[%clk 0:02:32]} 7. a4 {[%clk 0:02:56]}  h6 {[%clk 0:02:26]} 8. Nbd2 {[%clk 0:02:55]}  g5 {[%clk 0:02:24]} 9. Nb3 {[%clk 0:02:55]}  Ne7 {[%clk 0:02:18]} 10. Bd2 {[%clk 0:02:49]}  Bg7 {[%clk 0:01:59]} 11. Ne1 {[%clk 0:02:41]}  O-O {[%clk 0:01:36]} 12. Bd3 {[%clk 0:02:41]}  f6 {[%clk 0:01:33]} 13. f4 {[%clk 0:02:34]}  gxf4 {[%clk 0:01:30]} 14. exf6 {[%clk 0:02:34]}  Nxf6 {[%clk 0:01:24]} 15. Bxf4 {[%clk 0:02:34]}  Ng6 {[%clk 0:01:08]} 16. Be3 {[%clk 0:02:05]}  Ne4 {[%clk 0:01:03]} 17. Nf3 {[%clk 0:02:00]}  Qc7 {[%clk 0:00:49]} 18. Bxe4 {[%clk 0:01:49]}  dxe4 {[%clk 0:00:36]} 19. Nfd2 {[%clk 0:01:49]}  e5 {[%clk 0:00:37]} 20. Qh5 {[%clk 0:01:45]}  Qd7 {[%clk 0:00:25]} 21. Nc5 {[%clk 0:01:42]}  Qc8 {[%clk 0:00:20]} 22. Bxh6 {[%clk 0:01:30]}  exd4 {[%clk 0:00:12]} 23. Bxg7 {[%clk 0:01:27]}  Kxg7 {[%clk 0:00:13]} 24. Ndxe4 {[%clk 0:01:28]}  Bxe4 {[%clk 0:00:08]} 25. Nxe4 {[%clk 0:01:27]}  Qe6 {[%clk 0:00:09]} 26. Ng5 {[%clk 0:01:22]}  Qe3+ {[%clk 0:00:08]} 27. Kh1 {[%clk 0:01:22]}  Rf4 {[%clk 0:00:03]} 28. Rxf4 {[%clk 0:01:01]}  Qxf4 {[%clk 0:00:00]} 29. Ne6+ {[%clk 0:01:01]} 1-0


[Site "https://www.chess.com"]

[Event "Titled Tuesday Blitz August 15 Early 2023"]
[White "Dimitrov, Atanas"]
[Black "Altman, Joshua"]
[WhiteFideId "2901315"]
[BlackFideId "426210"]
[WhiteElo "2734"]
[BlackElo "2581"]
[Result "1-0"]
[Round "10"]
[TimeControl "180+1"]
[Date "2023.08.15"]
[WhiteClock "0:01:14"]
[BlackClock "0:00:31"]
[Board "47"]

1. Nf3 {[%clk 0:03:00]}  Nf6 {[%clk 0:02:57]} 2. c4 {[%clk 0:03:01]}  e6 {[%clk 0:02:57]} 3. Nc3 {[%clk 0:03:01]}  Bb4 {[%clk 0:02:55]} 4. Qc2 {[%clk 0:03:00]}  d5 {[%clk 0:02:51]} 5. e3 {[%clk 0:03:00]}  O-O {[%clk 0:02:50]} 6. b3 {[%clk 0:03:00]}  c5 {[%clk 0:02:47]} 7. Bb2 {[%clk 0:02:55]}  d4 {[%clk 0:02:34]} 8. exd4 {[%clk 0:02:54]}  cxd4 {[%clk 0:02:35]} 9. Ne4 {[%clk 0:02:52]}  Nc6 {[%clk 0:02:31]} 10. Nxf6+ {[%clk 0:02:47]}  Qxf6 {[%clk 0:02:31]} 11. Bd3 {[%clk 0:02:47]}  h6 {[%clk 0:02:27]} 12. a3 {[%clk 0:02:44]}  Bd6 {[%clk 0:02:21]} 13. b4 {[%clk 0:02:42]}  e5 {[%clk 0:02:19]} 14. O-O {[%clk 0:02:31]}  Bg4 {[%clk 0:02:18]} 15. Be4 {[%clk 0:02:30]}  Rac8 {[%clk 0:02:17]} 16. c5 {[%clk 0:02:27]}  Be7 {[%clk 0:02:10]} 17. h3 {[%clk 0:02:24]}  Bh5 {[%clk 0:02:08]} 18. Rfe1 {[%clk 0:02:24]}  Bxf3 {[%clk 0:01:35]} 19. Bxf3 {[%clk 0:02:23]}  Rfe8 {[%clk 0:01:34]} 20. Rac1 {[%clk 0:01:59]}  Bf8 {[%clk 0:01:33]} 21. d3 {[%clk 0:01:51]}  a5 {[%clk 0:01:27]} 22. Qb3 {[%clk 0:01:49]}  axb4 {[%clk 0:01:25]} 23. axb4 {[%clk 0:01:50]}  b6 {[%clk 0:01:13]} 24. cxb6 {[%clk 0:01:35]}  Nxb4 {[%clk 0:01:06]} 25. b7 {[%clk 0:01:30]}  Rb8 {[%clk 0:01:03]} 26. Ba3 {[%clk 0:01:22]}  Na6 {[%clk 0:00:41]} 27. Bxf8 {[%clk 0:01:21]}  Rxf8 {[%clk 0:00:42]} 28. Rc6 {[%clk 0:01:18]}  Rxb7 {[%clk 0:00:31]} 29. Qxb7 {[%clk 0:01:14]} 1-0


[Site "https://www.chess.com"]

[Event "Titled Tuesday Blitz August 15 Early 2023"]
[White "Hua, Lefong"]
[Black "Williams, Simon K"]
[WhiteFideId "2602253"]
[BlackFideId "404454"]
[WhiteElo "2694"]
[BlackElo "2561"]
[Result "1-0"]
[Round "10"]
[TimeControl "180+1"]
[Date "2023.08.15"]
[WhiteClock "0:00:24"]
[BlackClock "0:00:00"]
[Board "50"]

1. d4 {[%clk 0:03:00]}  e6 {[%clk 0:02:57]} 2. c4 {[%clk 0:03:01]}  f5 {[%clk 0:02:57]} 3. g3 {[%clk 0:03:00]}  Nf6 {[%clk 0:02:57]} 4. Bg2 {[%clk 0:03:01]}  Be7 {[%clk 0:02:58]} 5. Nc3 {[%clk 0:02:58]}  O-O {[%clk 0:02:58]} 6. Nf3 {[%clk 0:02:57]}  d6 {[%clk 0:02:58]} 7. O-O {[%clk 0:02:57]}  Ne4 {[%clk 0:02:58]} 8. Qc2 {[%clk 0:02:57]}  Nxc3 {[%clk 0:02:58]} 9. Qxc3 {[%clk 0:02:57]}  a5 {[%clk 0:02:58]} 10. b3 {[%clk 0:02:57]}  Nc6 {[%clk 0:02:57]} 11. Bb2 {[%clk 0:02:56]}  Bf6 {[%clk 0:02:58]} 12. Rad1 {[%clk 0:02:56]}  Qe8 {[%clk 0:02:55]} 13. a3 {[%clk 0:02:51]}  e5 {[%clk 0:02:55]} 14. dxe5 {[%clk 0:02:48]}  dxe5 {[%clk 0:02:55]} 15. Qc2 {[%clk 0:02:45]}  g5 {[%clk 0:02:52]} 16. e3 {[%clk 0:02:38]}  g4 {[%clk 0:02:52]} 17. Nd2 {[%clk 0:02:37]}  e4 {[%clk 0:02:52]} 18. Nb1 {[%clk 0:02:26]}  Bxb2 {[%clk 0:02:50]} 19. Qxb2 {[%clk 0:02:26]}  Qe5 {[%clk 0:02:50]} 20. Qxe5 {[%clk 0:02:24]}  Nxe5 {[%clk 0:02:50]} 21. Rd5 {[%clk 0:02:23]}  Nd3 {[%clk 0:02:43]} 22. Rd1 {[%clk 0:02:18]}  Be6 {[%clk 0:02:41]} 23. Rd4 {[%clk 0:02:13]}  Rad8 {[%clk 0:02:33]} 24. Bf1 {[%clk 0:02:09]}  c5 {[%clk 0:02:07]} 25. Rxd8 {[%clk 0:02:03]}  Rxd8 {[%clk 0:02:07]} 26. Nc3 {[%clk 0:01:49]}  b6 {[%clk 0:01:52]} 27. Bxd3 {[%clk 0:01:43]}  exd3 {[%clk 0:01:47]} 28. Kf1 {[%clk 0:01:40]}  b5 {[%clk 0:01:04]} 29. cxb5 {[%clk 0:01:17]}  Bxb3 {[%clk 0:01:03]} 30. Rb1 {[%clk 0:01:17]}  a4 {[%clk 0:00:51]} 31. Ke1 {[%clk 0:01:04]}  d2+ {[%clk 0:00:49]} 32. Ke2 {[%clk 0:01:04]}  Bc4+ {[%clk 0:00:40]} 33. Kd1 {[%clk 0:01:04]}  Bb3+ {[%clk 0:00:26]} 34. Ke2 {[%clk 0:01:04]}  Rd6 {[%clk 0:00:22]} 35. b6 {[%clk 0:00:56]}  Rxb6 {[%clk 0:00:21]} 36. Kxd2 {[%clk 0:00:55]}  Rd6+ {[%clk 0:00:22]} 37. Ke1 {[%clk 0:00:53]}  Rd3 {[%clk 0:00:21]} 38. Rc1 {[%clk 0:00:51]}  Kf7 {[%clk 0:00:20]} 39. Ke2 {[%clk 0:00:51]}  c4 {[%clk 0:00:20]} 40. Nb5 {[%clk 0:00:46]}  Rd7 {[%clk 0:00:13]} 41. Nd4 {[%clk 0:00:43]}  Kf6 {[%clk 0:00:14]} 42. Kd2 {[%clk 0:00:44]}  Ke5 {[%clk 0:00:10]} 43. Kc3 {[%clk 0:00:39]}  Ke4 {[%clk 0:00:11]} 44. Rf1 {[%clk 0:00:37]}  h5 {[%clk 0:00:11]} 45. f3+ {[%clk 0:00:31]}  Kxe3 {[%clk 0:00:10]} 46. Re1+ {[%clk 0:00:32]}  Kf2 {[%clk 0:00:10]} 47. Re2+ {[%clk 0:00:32]}  Kf1 {[%clk 0:00:10]} 48. Re5 {[%clk 0:00:30]}  Rxd4 {[%clk 0:00:08]} 49. Kxd4 {[%clk 0:00:29]}  gxf3 {[%clk 0:00:09]} 50. Rxf5 {[%clk 0:00:30]}  Ke2 {[%clk 0:00:08]} 51. Re5+ {[%clk 0:00:28]}  Kd2 {[%clk 0:00:08]} 52. Rf5 {[%clk 0:00:28]}  c3 {[%clk 0:00:08]} 53. Rxf3 {[%clk 0:00:28]}  c2 {[%clk 0:00:08]} 54. Rf1 {[%clk 0:00:27]}  c1=Q {[%clk 0:00:08]} 55. Rxc1 {[%clk 0:00:27]}  Kxc1 {[%clk 0:00:08]} 56. Kc3 {[%clk 0:00:28]}  Be6 {[%clk 0:00:07]} 57. Kb4 {[%clk 0:00:28]}  Bd7 {[%clk 0:00:07]} 58. Kc3 {[%clk 0:00:25]}  Kb1 {[%clk 0:00:07]} 59. Kb4 {[%clk 0:00:21]}  Ka2 {[%clk 0:00:07]} 60. h3 {[%clk 0:00:22]}  Bxh3 {[%clk 0:00:04]} 61. Kxa4 {[%clk 0:00:22]}  Kb2 {[%clk 0:00:05]} 62. Kb4 {[%clk 0:00:22]}  Kc2 {[%clk 0:00:05]} 63. Kc4 {[%clk 0:00:23]}  Kd2 {[%clk 0:00:04]} 64. Kd4 {[%clk 0:00:23]}  Ke2 {[%clk 0:00:05]} 65. Ke4 {[%clk 0:00:24]}  Kf2 {[%clk 0:00:05]} 66. Kf4 {[%clk 0:00:24]}  Bd7 {[%clk 0:00:04]} 67. Kg5 {[%clk 0:00:23]}  Bg4 {[%clk 0:00:00]} 68. Kh4 {[%clk 0:00:24]} 1-0


[Site "https://www.chess.com"]

[Event "Titled Tuesday Blitz August 15 Early 2023"]
[White "Huschenbeth, Niclas"]
[Black "Ordekalog"]
[WhiteFideId "24604747"]
[WhiteElo "2666"]
[BlackElo "2547"]
[Result "1/2-1/2"]
[Round "10"]
[TimeControl "180+1"]
[Date "2023.08.15"]
[WhiteClock "0:00:05"]
[BlackClock "0:00:05"]
[Board "52"]

1. e4 {[%clk 0:03:00]}  c5 {[%clk 0:02:58]} 2. Nf3 {[%clk 0:03:00]}  Nc6 {[%clk 0:02:57]} 3. d4 {[%clk 0:03:01]}  cxd4 {[%clk 0:02:57]} 4. Nxd4 {[%clk 0:03:02]}  Qb6 {[%clk 0:02:57]} 5. Nb3 {[%clk 0:03:01]}  Nf6 {[%clk 0:02:56]} 6. Nc3 {[%clk 0:03:02]}  e6 {[%clk 0:02:57]} 7. Qe2 {[%clk 0:03:01]}  Bb4 {[%clk 0:02:55]} 8. Bd2 {[%clk 0:03:00]}  O-O {[%clk 0:02:55]} 9. O-O-O {[%clk 0:02:57]}  d5 {[%clk 0:02:55]} 10. e5 {[%clk 0:02:57]}  Bxc3 {[%clk 0:02:50]} 11. Bxc3 {[%clk 0:02:53]}  Ne4 {[%clk 0:02:50]} 12. Bd4 {[%clk 0:02:48]}  Nxd4 {[%clk 0:02:50]} 13. Nxd4 {[%clk 0:02:31]}  Bd7 {[%clk 0:02:49]} 14. f3 {[%clk 0:02:29]}  Nc5 {[%clk 0:02:48]} 15. Kb1 {[%clk 0:02:27]}  Rfc8 {[%clk 0:02:46]} 16. h4 {[%clk 0:02:16]}  a5 {[%clk 0:02:46]} 17. h5 {[%clk 0:02:11]}  a4 {[%clk 0:02:44]} 18. a3 {[%clk 0:02:07]}  Qd8 {[%clk 0:02:12]} 19. Qd2 {[%clk 0:01:47]}  h6 {[%clk 0:02:08]} 20. g4 {[%clk 0:01:47]}  b5 {[%clk 0:02:08]} 21. c3 {[%clk 0:01:46]}  Nb3 {[%clk 0:02:08]} 22. Qe3 {[%clk 0:01:38]}  b4 {[%clk 0:01:33]} 23. cxb4 {[%clk 0:01:36]}  Qc7 {[%clk 0:01:33]} 24. Bd3 {[%clk 0:01:21]}  Qa7 {[%clk 0:01:09]} 25. Bc2 {[%clk 0:01:09]}  Nxd4 {[%clk 0:01:05]} 26. Qxd4 {[%clk 0:01:10]}  Rc4 {[%clk 0:01:04]} 27. Qxa7 {[%clk 0:01:08]}  Rxa7 {[%clk 0:01:03]} 28. Bd3 {[%clk 0:01:07]}  Rf4 {[%clk 0:01:02]} 29. Be2 {[%clk 0:01:01]}  f6 {[%clk 0:01:02]} 30. exf6 {[%clk 0:00:58]}  gxf6 {[%clk 0:01:03]} 31. Rd2 {[%clk 0:00:45]}  Kf7 {[%clk 0:01:02]} 32. Rc1 {[%clk 0:00:45]}  Ke7 {[%clk 0:01:02]} 33. Rc5 {[%clk 0:00:36]}  Kd6 {[%clk 0:01:00]} 34. Kc2 {[%clk 0:00:35]}  Ra8 {[%clk 0:00:54]} 35. b3 {[%clk 0:00:32]}  Bc6 {[%clk 0:00:41]} 36. bxa4 {[%clk 0:00:31]}  Bxa4+ {[%clk 0:00:38]} 37. Kb2 {[%clk 0:00:31]}  Bc6 {[%clk 0:00:38]} 38. Rdc2 {[%clk 0:00:27]}  Bd7 {[%clk 0:00:37]} 39. Rd2 {[%clk 0:00:20]}  Bc6 {[%clk 0:00:35]} 40. Rd3 {[%clk 0:00:17]}  e5 {[%clk 0:00:33]} 41. Rd2 {[%clk 0:00:15]}  d4 {[%clk 0:00:33]} 42. Rd3 {[%clk 0:00:12]}  Bb7 {[%clk 0:00:30]} 43. Rb3 {[%clk 0:00:07]}  e4 {[%clk 0:00:22]} 44. fxe4 {[%clk 0:00:06]}  Rf2 {[%clk 0:00:22]} 45. Rc2 {[%clk 0:00:05]}  Bxe4 {[%clk 0:00:22]} 46. Bd3 {[%clk 0:00:04]}  Rxc2+ {[%clk 0:00:19]} 47. Kxc2 {[%clk 0:00:02]}  Bd5 {[%clk 0:00:19]} 48. Rb1 {[%clk 0:00:02]}  Rxa3 {[%clk 0:00:20]} 49. b5 {[%clk 0:00:01]}  Ra2+ {[%clk 0:00:16]} 50. Kd1 {[%clk 0:00:02]}  Bf3+ {[%clk 0:00:16]} 51. Ke1 {[%clk 0:00:02]}  Ra3 {[%clk 0:00:10]} 52. b6 {[%clk 0:00:02]}  Rxd3 {[%clk 0:00:10]} 53. b7 {[%clk 0:00:03]}  Re3+ {[%clk 0:00:08]} 54. Kf2 {[%clk 0:00:03]}  Bxb7 {[%clk 0:00:08]} 55. Rxb7 {[%clk 0:00:03]}  Ke5 {[%clk 0:00:07]} 56. Rh7 {[%clk 0:00:03]}  Kf4 {[%clk 0:00:07]} 57. Rxh6 {[%clk 0:00:04]}  Re7 {[%clk 0:00:02]} 58. Rxf6+ {[%clk 0:00:02]}  Kxg4 {[%clk 0:00:03]} 59. h6 {[%clk 0:00:02]}  Kg5 {[%clk 0:00:03]} 60. Rd6 {[%clk 0:00:02]}  Rh7 {[%clk 0:00:04]} 61. Rxd4 {[%clk 0:00:02]}  Rxh6 {[%clk 0:00:05]} 62. Rd5+ {[%clk 0:00:03]}  Kf6 {[%clk 0:00:05]} 63. Rd4 {[%clk 0:00:04]}  Ke5 {[%clk 0:00:05]} 64. Rd3 {[%clk 0:00:04]}  Rf6+ {[%clk 0:00:05]} 65. Rf3 {[%clk 0:00:04]}  Rxf3+ {[%clk 0:00:05]} 66. Kxf3 {[%clk 0:00:05]} 1/2-1/2


[Site "https://www.chess.com"]